Workbook

Sheet Instructions
A1: Manufacturer | B1: Cotto d'Este
A2: File as | B2: C
A3: Product Code | B3: D
A4: CCTD Effective Date | B4: 1/1/25 (Updated)
A8: Enter your Company Name
B10: Click on "Index" to set the print area for the price list index
B11: Then you can send it to print
B14: Click on "Suggested Price List" to set the print area for Conestoga Tile's suggested price list.
B15: Then you can send it to print
B18: Enter your discount codes if you want a personal net cost sheet.
B20: Product
B21: Code | C21: Disc. %
B22: =+B3 -> D
B24: Click on "Your Cost" to set the print area for your personal cost report.
B25: Then you can send it to print
A28: Discount: | B28: To help establish your price list, enter the gross profit percent for each type of product.
B29: If you want to use Conestoga Tile's list price, leave them blank.
A31: Round Nickel: | B31: If you always want your price to round to the nearest nickel, enter "YES".
B32: If you enter "NO", it will NOT round to the nearest nickel.
A34: Ending Cents: | B34: If you always want your price to end with a certain cents, enter that cent value.
B35: If you leave it "blank" will NOT round to this cent value.
B37: Group | C37: GP Margin | D37: GP Margin % for | F37: Round Nickel | G37: add/subtract | H37: Ending Cents
B38: 1 | D38: Field Tile | F38: No | G38: 0
B39: 2 | D39: Trim | F39: No | G39: 0
B40: 3 | D40: Decos | F40: No | G40: 0
B41: 4 | D41: Italy | F41: No | G41: 0
B42: 5 | D42: 0 | F42: No | G42: 0
B43: 6 | D43: 0 | F43: No | G43: 0
B44: 7 | D44: 0 | F44: No | G44: 0
A46: If you want to manually adjust your price list, hit "F5" and go to "Customer_Cost" to manually adjust pricing.
A47: You can enter a value in the column labeled "Adj." to change your price manually.
B49: Click on "Your Price Calculation" to set the print area for your personal cost calculation report.
B50: Then you can send it to print
B53: Click on "Your Price List" to set the print area for your personal price list.
B54: Then you can send it to print
H55: Yes
A57: If you have any questions on how to best use this spreadsheet, please feel free to contact
A58: Jim Vogel at (800) 422-6860, ext. 4201 or via e-mail at jimvogel@cctd.com

Sheet Index
F3: ="File '"&Instructions!B2&"' - "&Instructions!B1 -> File 'C' - Cotto d'Este
A6: ="Price List Index - "&Instructions!B4 -> Price List Index - 1/1/25 (Updated)
A11: Page | C11: Series | E11: Product Type
A12: 1 | C12: Black-White | E12: Laminated Porcelain Stoneware
A13: 1 | C13: Cement Project | E13: Laminated Porcelain Stoneware
A14: 1 | C14: Grunge | E14: Laminated Porcelain Stoneware
A15: 1 | C15: Kerlite Easy | E15: Dry Installation System
A16: 1 | C16: Limestone | E16: Laminated Porcelain Stoneware
A17: 1 | C17: Lithos | E17: Laminated Porcelain Stoneware
A18: 1 | C18: Metal | E18: Laminated Porcelain Stoneware
A19: 1 | C19: Pietra D'Iseo | E19: Laminated Porcelain Stoneware
A20: 1-2 | C20: Vanity | E20: Laminated Porcelain Stoneware
A21: 2 | C21: Wonderwall | E21: Laminated Porcelain Stoneware
A49: This price list is available electronically on an Excel spreadsheet at www.conestogatile.com/pricelists.
A51: The spreadsheet has many special features to assist you. Apply your discount to generate your net costs for your purchasing department. Apply your standard gross margin percentage or custom prices to generate your own custom price list for your showroom. Print out individual price list for each series that can be attached to the back of your sample boards for easy reference.

Sheet Price List
B1: Field Tile | E1: Size | G1: Field | P1: SF/CTN | S1: =IF(Suggested="Yes",AA1,AG1) -> 0.05 | T1: SF | U1: =+Instructions!$B$3 -> D | W1: =+Instructions!$C$22 -> 0 | X1: =ROUND($AA1*(1-W1)+0.004999,2) -> 0.05 | Z1: new | AA1: 0.05 | AB1: =+W1 -> 0 | AC1: 0.05 | AD1: =(AG1-AC1)/AG1 -> 0 | AF1: 1 | AG1: =SUM(AJ1:AL1)+AE1 -> 0.05 | AJ1: =ROUND(AC1/(1-VLOOKUP(AF1,Group,2,FALSE)),2) -> 0.05 | AK1: =IF(VLOOKUP(AF1,Group,5,FALSE)="YES",VLOOKUP(ROUND(ROUND(AJ1,1)-AJ1,2),Round,2,FALSE)+VLOOKUP(AF1,Group,6,FALSE),0) -> 0 | AL1: =IF(VLOOKUP(AF1,Group,7,FALSE)="",0,ROUND(AJ1-0.04999,1)-AJ1+AM1) -> 0 | AM1: =IF(VLOOKUP(AF1,Group,7,FALSE)="","",VLOOKUP(AF1,Group,7,FALSE)) ->  | AO1: X
B2: Trim | E2: Size | G2: Shape | I2: Description | S2: =IF(Suggested="Yes",AA2,AG2) -> 0.05 | T2: EA | U2: =+Instructions!$B$3 -> D | W2: =+Instructions!$C$22 -> 0 | X2: 0.05 | Z2: new | AA2: 0.05 | AB2: 0 | AC2: 0.05 | AD2: 0 | AF2: 2 | AG2: 0.05 | AJ2: 0.05 | AK2: 0 | AL2: 0 | AO2: X
B3: Decos | E3: Size | G3: Shape | I3: Description | S3: 0.05 | T3: EA | U3: =+Instructions!$B$3 -> D | W3: =+Instructions!$C$22 -> 0 | X3: 0.05 | Z3: new | AA3: 0.05 | AB3: 0 | AC3: 0.05 | AD3: 0 | AF3: 3 | AG3: 0.05 | AJ3: 0.05 | AK3: 0 | AL3: 0 | AO3: X
B4: Italy | E4: Size | G4: Shape | I4: Description | S4: 0.05 | T4: EA | U4: =+Instructions!$B$3 -> D | W4: =+Instructions!$C$22 -> 0 | X4: 0.05 | Z4: new | AA4: 0.05 | AB4: 0 | AC4: 0.05 | AD4: 0 | AF4: 4 | AG4: 0.05 | AJ4: 0.05 | AK4: 0 | AL4: 0 | AO4: X
B5: 0 | E5: Size | G5: Shape | I5: Description | T5: EA | U5: =+Instructions!$B$3 -> D | W5: =+Instructions!$C$22 -> 0 | Z5: new | AB5: 0 | AF5: 5 | AK5: 0 | AL5: 0 | AO5: X
B6: 0 | E6: Size | G6: Shape | I6: Description | T6: EA | U6: =+Instructions!$B$3 -> D | W6: =+Instructions!$C$22 -> 0 | Z6: new | AB6: 0 | AF6: 6 | AK6: 0 | AL6: 0 | AO6: X
B7: 0 | E7: Size | G7: Shape | I7: Description | T7: EA | U7: =+Instructions!$B$3 -> D | W7: =+Instructions!$C$22 -> 0 | Z7: new | AB7: 0 | AF7: 7 | AK7: 0 | AL7: 0 | AO7: X
B8: Format | Q8: Stock | R8: a | S8: 1000 | T8: ABC | W8: 0.1 | X8: 1000 | Z8: ABC | AA8: 1000 | AB8: 0.1 | AC8: 1000 | AD8: 0.1 | AE8: 10 | AG8: 1000 | AO8: X
AO9: X
O10: Price List | W10: Cust. Cost | Z10: Customer Cost Calculation | AO10: X
D11: Sizes & Shapes | O11: Full Carton | Q11: Stock | R11: Note | S11: =IF(Suggested="Yes",AA11,AG11) -> List Price | T11: U/M | U11: Code | W11: Disc. | X11: Net | Z11: Chg | AA11: List Price | AB11: Disc | AC11: Act. Cost | AD11: GP% | AE11: Adj. | AF11: Group | AG11: Price | AJ11: Calc Price | AK11: .05 Round | AL11: Cents | AM11: Round to | AO11: X
AO12: X
O13: ="File '"&Instructions!B2&"' - "&Instructions!B1 -> File 'C' - Cotto d'Este | W13: Cost | AG13: Retail Price Calculations | AO13: X
T14: =+Instructions!B4 -> 1/1/25 (Updated) | AE14: =TODAY() -> 2025-01-14 | AO14: X
N15: =IF(Instructions!C8="","",+Instructions!C8) ->  | AO15: X
C16: ="Product Code '"&Instructions!B3&"'" -> Product Code 'D' | AG16: =IF(Instructions!$C$8="","",Instructions!$C$8) ->  | AO16: X
AO17: X
C18: Sizes & Shapes | O18: Full Carton | Q18: Stock | R18: Note | S18: =+S$11 -> List Price | T18: U/M | U18: =+U$11 -> Code | W18: Disc. | X18: Net | Z18: Chg | AA18: List Price | AB18: =+AB$11 -> Disc | AC18: Act. Cost | AD18: GP% | AE18: Adj. | AF18: =+AF$11 -> Group | AG18: Price | AJ18: Calc Price | AK18: .05 Round | AL18: Cents | AM18: Round to | AO18: X
C19: ALL ITEMS MARKED WITH PACKAGING QUANTITY ARE SOLD IN MULTIPLES OF THAT QUANTITY ONLY | AO19: X
AO20: X
C21: BLACK-WHITE | R21: Item # Lookup: | S21: CDBW | AO21: X
AO22: X
D23: Color: | E23: Black | AO23: X
AO24: X
B25: Field Tile | E25: 39" x 118" x 5.5mm | G25: Field / Kerlite | K25: Glossy / Rectified | P25: 32.29 SF/SLAB | R25: a | S25: =IF(Suggested="Yes",AA25,AG25) -> 28 | T25: SF | U25: =+Instructions!$B$3 -> D | W25: =+Instructions!$C$22 -> 0 | X25: =ROUND($AA25*(1-W25)+0.004999,2) -> 28 | AA25: 28 | AB25: =+W25 -> 0 | AC25: 28 | AD25: =(AG25-AC25)/AG25 -> 0 | AF25: 1 | AG25: =SUM(AJ25:AL25)+AE25 -> 28 | AJ25: =ROUND(AC25/(1-VLOOKUP(AF25,Group,2,FALSE)),2) -> 28 | AK25: =IF(VLOOKUP(AF25,Group,5,FALSE)="YES",VLOOKUP(ROUND(ROUND(AJ25,1)-AJ25,2),Round,2,FALSE)+VLOOKUP(AF25,Group,6,FALSE),0) -> 0 | AL25: =IF(VLOOKUP(AF25,Group,7,FALSE)="",0,ROUND(AJ25-0.04999,1)-AJ25+AM25) -> 0 | AM25: =IF(VLOOKUP(AF25,Group,7,FALSE)="","",VLOOKUP(AF25,Group,7,FALSE)) ->  | AO25: X
AO26: X
B27: Field Tile | E27: 39" x 118" x 5.5mm | G27: Field / Kerlite | K27: Silk / Rectified | P27: 32.29 SF/SLAB | R27: a | S27: =IF(Suggested="Yes",AA27,AG27) -> 22.1 | T27: SF | U27: =+Instructions!$B$3 -> D | W27: =+Instructions!$C$22 -> 0 | X27: =ROUND($AA27*(1-W27)+0.004999,2) -> 22.1 | AA27: 22.1 | AB27: =+W27 -> 0 | AC27: 22.1 | AD27: =(AG27-AC27)/AG27 -> 0 | AF27: 1 | AG27: =SUM(AJ27:AL27)+AE27 -> 22.1 | AJ27: =ROUND(AC27/(1-VLOOKUP(AF27,Group,2,FALSE)),2) -> 22.1 | AK27: =IF(VLOOKUP(AF27,Group,5,FALSE)="YES",VLOOKUP(ROUND(ROUND(AJ27,1)-AJ27,2),Round,2,FALSE)+VLOOKUP(AF27,Group,6,FALSE),0) -> 0 | AL27: =IF(VLOOKUP(AF27,Group,7,FALSE)="",0,ROUND(AJ27-0.04999,1)-AJ27+AM27) -> 0 | AM27: =IF(VLOOKUP(AF27,Group,7,FALSE)="","",VLOOKUP(AF27,Group,7,FALSE)) ->  | AO27: X
AO28: X
D29: Color: | E29: Ultrawhite | AO29: X
AO30: X
B31: Field Tile | E31: 39" x 39" x 5.5mm | G31: Field / Kerlite | K31: Glossy / Rectified | P31: 21.53 SF/CTN | S31: =IF(Suggested="Yes",AA31,AG31) -> 30.65 | T31: SF | U31: =+Instructions!$B$3 -> D | W31: =+Instructions!$C$22 -> 0 | X31: =ROUND($AA31*(1-W31)+0.004999,2) -> 30.65 | AA31: 30.65 | AB31: =+W31 -> 0 | AC31: 30.65 | AD31: =(AG31-AC31)/AG31 -> 0 | AF31: 1 | AG31: =SUM(AJ31:AL31)+AE31 -> 30.65 | AJ31: =ROUND(AC31/(1-VLOOKUP(AF31,Group,2,FALSE)),2) -> 30.65 | AK31: =IF(VLOOKUP(AF31,Group,5,FALSE)="YES",VLOOKUP(ROUND(ROUND(AJ31,1)-AJ31,2),Round,2,FALSE)+VLOOKUP(AF31,Group,6,FALSE),0) -> 0 | AL31: =IF(VLOOKUP(AF31,Group,7,FALSE)="",0,ROUND(AJ31-0.04999,1)-AJ31+AM31) -> 0 | AM31: =IF(VLOOKUP(AF31,Group,7,FALSE)="","",VLOOKUP(AF31,Group,7,FALSE)) ->  | AO31: X
B32: Field Tile | E32: 39" x 118" x 5.5mm | G32: Field / Kerlite | K32: Glossy / Rectified | P32: 32.29 SF/SLAB | R32: a | S32: =IF(Suggested="Yes",AA32,AG32) -> 32.15 | T32: SF | U32: =+Instructions!$B$3 -> D | W32: =+Instructions!$C$22 -> 0 | X32: =ROUND($AA32*(1-W32)+0.004999,2) -> 32.15 | AA32: 32.15 | AB32: 0 | AC32: 32.15 | AD32: =(AG32-AC32)/AG32 -> 0 | AF32: 1 | AG32: =SUM(AJ32:AL32)+AE32 -> 32.15 | AJ32: =ROUND(AC32/(1-VLOOKUP(AF32,Group,2,FALSE)),2) -> 32.15 | AK32: =IF(VLOOKUP(AF32,Group,5,FALSE)="YES",VLOOKUP(ROUND(ROUND(AJ32,1)-AJ32,2),Round,2,FALSE)+VLOOKUP(AF32,Group,6,FALSE),0) -> 0 | AL32: =IF(VLOOKUP(AF32,Group,7,FALSE)="",0,ROUND(AJ32-0.04999,1)-AJ32+AM32) -> 0 | AM32: =IF(VLOOKUP(AF32,Group,7,FALSE)="","",VLOOKUP(AF32,Group,7,FALSE)) ->  | AO32: X
AO33: X
B34: Field Tile | E34: 39" x 118" x 5.5mm | G34: Field / Kerlite | K34: Silk / Rectified | P34: 32.29 SF/SLAB | R34: a | S34: =IF(Suggested="Yes",AA34,AG34) -> 26.25 | T34: SF | U34: =+Instructions!$B$3 -> D | W34: =+Instructions!$C$22 -> 0 | X34: =ROUND($AA34*(1-W34)+0.004999,2) -> 26.25 | AA34: 26.25 | AB34: =+W34 -> 0 | AC34: 26.25 | AD34: =(AG34-AC34)/AG34 -> 0 | AF34: 1 | AG34: =SUM(AJ34:AL34)+AE34 -> 26.25 | AJ34: =ROUND(AC34/(1-VLOOKUP(AF34,Group,2,FALSE)),2) -> 26.25 | AK34: =IF(VLOOKUP(AF34,Group,5,FALSE)="YES",VLOOKUP(ROUND(ROUND(AJ34,1)-AJ34,2),Round,2,FALSE)+VLOOKUP(AF34,Group,6,FALSE),0) -> 0 | AL34: =IF(VLOOKUP(AF34,Group,7,FALSE)="",0,ROUND(AJ34-0.04999,1)-AJ34+AM34) -> 0 | AM34: =IF(VLOOKUP(AF34,Group,7,FALSE)="","",VLOOKUP(AF34,Group,7,FALSE)) ->  | AO34: X
AO35: X
D36: Note: | E36: a) There is an additional crate charge of $474.50 for each crate used for shipment. There is 419.77 sf per crate. | AO36: X
AO37: X
C38: CEMENT PROJECT | R38: Item # Lookup: | S38: CDCP | AO38: X
AO39: X
D40: Colors: | E40: Color-10 Cem Color-20 Cem Color-30 Cem | AO40: X
AO41: X
B42: Field Tile | E42: 39" x 39" x 5.5mm | G42: Field / Kerlite | K42: Naturale / Rectified | P42: 21.53 SF/CTN | S42: =IF(Suggested="Yes",AA42,AG42) -> 20.55 | T42: SF | U42: =+Instructions!$B$3 -> D | W42: =+Instructions!$C$22 -> 0 | X42: =ROUND($AA42*(1-W42)+0.004999,2) -> 20.55 | AA42: 20.55 | AB42: =+W42 -> 0 | AC42: =+X42 -> 20.55 | AD42: =(AG42-AC42)/AG42 -> 0 | AF42: 1 | AG42: =SUM(AJ42:AL42)+AE42 -> 20.55 | AJ42: =ROUND(AC42/(1-VLOOKUP(AF42,Group,2,FALSE)),2) -> 20.55 | AK42: =IF(VLOOKUP(AF42,Group,5,FALSE)="YES",VLOOKUP(ROUND(ROUND(AJ42,1)-AJ42,2),Round,2,FALSE)+VLOOKUP(AF42,Group,6,FALSE),0) -> 0 | AL42: =IF(VLOOKUP(AF42,Group,7,FALSE)="",0,ROUND(AJ42-0.04999,1)-AJ42+AM42) -> 0 | AM42: =IF(VLOOKUP(AF42,Group,7,FALSE)="","",VLOOKUP(AF42,Group,7,FALSE)) ->  | AO42: X
AO43: X
D44: Colors: | E44: Color-10 Work Color-20 Work Color-30 Work | AO44: X
AO45: X
B46: Field Tile | E46: 39" x 118" x 5.5mm | G46: Field / Kerlite | K46: Naturale / Rectified | P46: 32.29 SF/SLAB | R46: a | S46: =IF(Suggested="Yes",AA46,AG46) -> 26.55 | T46: SF | U46: =+Instructions!$B$3 -> D | W46: =+Instructions!$C$22 -> 0 | X46: =ROUND($AA46*(1-W46)+0.004999,2) -> 26.55 | AA46: 26.55 | AB46: =+W46 -> 0 | AC46: =+X46 -> 26.55 | AD46: =(AG46-AC46)/AG46 -> 0 | AF46: 1 | AG46: =SUM(AJ46:AL46)+AE46 -> 26.55 | AJ46: =ROUND(AC46/(1-VLOOKUP(AF46,Group,2,FALSE)),2) -> 26.55 | AK46: =IF(VLOOKUP(AF46,Group,5,FALSE)="YES",VLOOKUP(ROUND(ROUND(AJ46,1)-AJ46,2),Round,2,FALSE)+VLOOKUP(AF46,Group,6,FALSE),0) -> 0 | AL46: =IF(VLOOKUP(AF46,Group,7,FALSE)="",0,ROUND(AJ46-0.04999,1)-AJ46+AM46) -> 0 | AM46: =IF(VLOOKUP(AF46,Group,7,FALSE)="","",VLOOKUP(AF46,Group,7,FALSE)) ->  | AO46: X
AO47: X
D48: Note: | E48: a) There is an additional crate charge of $474.50 for each crate used for shipment. There is 419.77 sf per crate. | AO48: X
AO49: X
C50: GRUNGE | R50: Item # Lookup: | S50: CDGR | AO50: X
AO51: X
D52: Colors: | E52: Musk Storm | AO52: X
AO53: X
B54: Field Tile | E54: 24" x 48" x 6.5mm | G54: Field / Kerlite | K54: Naturale / Rectified | P54: 23.25 SF/CTN | S54: =IF(Suggested="Yes",AA54,AG54) -> 27.95 | T54: SF | U54: =+Instructions!$B$3 -> D | W54: =+Instructions!$C$22 -> 0 | X54: =ROUND($AA54*(1-W54)+0.004999,2) -> 27.95 | AA54: 27.95 | AB54: =+W54 -> 0 | AC54: 27.95 | AD54: =(AG54-AC54)/AG54 -> 0 | AF54: 1 | AG54: =SUM(AJ54:AL54)+AE54 -> 27.95 | AJ54: =ROUND(AC54/(1-VLOOKUP(AF54,Group,2,FALSE)),2) -> 27.95 | AK54: =IF(VLOOKUP(AF54,Group,5,FALSE)="YES",VLOOKUP(ROUND(ROUND(AJ54,1)-AJ54,2),Round,2,FALSE)+VLOOKUP(AF54,Group,6,FALSE),0) -> 0 | AL54: =IF(VLOOKUP(AF54,Group,7,FALSE)="",0,ROUND(AJ54-0.04999,1)-AJ54+AM54) -> 0 | AM54: =IF(VLOOKUP(AF54,Group,7,FALSE)="","",VLOOKUP(AF54,Group,7,FALSE)) ->  | AO54: X
AO55: X
C56: KERLITE EASY - Dry Installation System | R56: Item # Lookup: | S56: CDKE | AO56: X
AO57: X
B58: Field Tile | E58: 3.28' x 32.81' | G58: Roll | K58: Kerlite Easy Mat Roll | S58: =IF(Suggested="Yes",AA58,AG58) -> 327.45 | T58: EA | U58: =+Instructions!$B$3 -> D | W58: =+Instructions!$C$22 -> 0 | X58: =ROUND($AA58*(1-W58)+0.004999,2) -> 327.45 | Z58: new | AA58: 327.45 | AB58: =+W58 -> 0 | AC58: =+X58 -> 327.45 | AD58: =(AG58-AC58)/AG58 -> 0 | AF58: 1 | AG58: =SUM(AJ58:AL58)+AE58 -> 327.45 | AJ58: =ROUND(AC58/(1-VLOOKUP(AF58,Group,2,FALSE)),2) -> 327.45 | AK58: =IF(VLOOKUP(AF58,Group,5,FALSE)="YES",VLOOKUP(ROUND(ROUND(AJ58,1)-AJ58,2),Round,2,FALSE)+VLOOKUP(AF58,Group,6,FALSE),0) -> 0 | AL58: =IF(VLOOKUP(AF58,Group,7,FALSE)="",0,ROUND(AJ58-0.04999,1)-AJ58+AM58) -> 0 | AM58: =IF(VLOOKUP(AF58,Group,7,FALSE)="","",VLOOKUP(AF58,Group,7,FALSE)) ->  | AO58: X
B59: Field Tile | E59: 10.50 oz | G59: Tube | I59: Cement Grey | K59: Kerlite Easy Filler | S59: =IF(Suggested="Yes",AA59,AG59) -> 37.65 | T59: EA | U59: =+Instructions!$B$3 -> D | W59: =+Instructions!$C$22 -> 0 | X59: =ROUND($AA59*(1-W59)+0.004999,2) -> 37.65 | Z59: new | AA59: 37.65 | AB59: =+W59 -> 0 | AC59: =+X59 -> 37.65 | AD59: =(AG59-AC59)/AG59 -> 0 | AF59: 1 | AG59: =SUM(AJ59:AL59)+AE59 -> 37.65 | AJ59: =ROUND(AC59/(1-VLOOKUP(AF59,Group,2,FALSE)),2) -> 37.65 | AK59: =IF(VLOOKUP(AF59,Group,5,FALSE)="YES",VLOOKUP(ROUND(ROUND(AJ59,1)-AJ59,2),Round,2,FALSE)+VLOOKUP(AF59,Group,6,FALSE),0) -> 0 | AL59: =IF(VLOOKUP(AF59,Group,7,FALSE)="",0,ROUND(AJ59-0.04999,1)-AJ59+AM59) -> 0 | AM59: =IF(VLOOKUP(AF59,Group,7,FALSE)="","",VLOOKUP(AF59,Group,7,FALSE)) ->  | AO59: X
AO60: X
D61: Note: | E61: Kerlite Easy is a simple-to-use dry-installation system created by Cotto d'Este. This system features a sound-absorbing mat on which Kerlite | AO61: X
E62: 5.5mm or 6.5mm tiles are installed and grouted with a special filler that makes the surfaces stable, immediately walkable, and water-resistant. | AO62: X
AO63: X
C64: LIMESTONE | R64: Item # Lookup: | S64: CDLS | AO64: X
AO65: X
D66: Colors: | E66: Amber Clay Oyster Slate | AO66: X
AO67: X
B68: Field Tile | E68: 39" x 39" x 5.5mm | G68: Field / Kerlite | K68: Naturale / Rectified | P68: 21.53 SF/CTN | S68: =IF(Suggested="Yes",AA68,AG68) -> 21 | T68: SF | U68: =+Instructions!$B$3 -> D | W68: =+Instructions!$C$22 -> 0 | X68: =ROUND($AA68*(1-W68)+0.004999,2) -> 21 | AA68: 21 | AB68: =+W68 -> 0 | AC68: 21 | AD68: =(AG68-AC68)/AG68 -> 0 | AF68: 1 | AG68: =SUM(AJ68:AL68)+AE68 -> 21 | AJ68: =ROUND(AC68/(1-VLOOKUP(AF68,Group,2,FALSE)),2) -> 21 | AK68: =IF(VLOOKUP(AF68,Group,5,FALSE)="YES",VLOOKUP(ROUND(ROUND(AJ68,1)-AJ68,2),Round,2,FALSE)+VLOOKUP(AF68,Group,6,FALSE),0) -> 0 | AL68: =IF(VLOOKUP(AF68,Group,7,FALSE)="",0,ROUND(AJ68-0.04999,1)-AJ68+AM68) -> 0 | AM68: =IF(VLOOKUP(AF68,Group,7,FALSE)="","",VLOOKUP(AF68,Group,7,FALSE)) ->  | AO68: X
AO69: X
C70: LITHOS | R70: Item # Lookup: | S70: CDLI | AO70: X
AO71: X
D72: Color: | E72: Carbon | AO72: X
AO73: X
B74: Field Tile | E74: 24" x 48" x 6.5mm | G74: Field / Kerlite | K74: Naturale / Rectified | P74: 23.25 SF/CTN | S74: =IF(Suggested="Yes",AA74,AG74) -> 21.75 | T74: SF | U74: =+Instructions!$B$3 -> D | W74: =+Instructions!$C$22 -> 0 | X74: =ROUND($AA74*(1-W74)+0.004999,2) -> 21.75 | AA74: 21.75 | AB74: =+W74 -> 0 | AC74: 21.75 | AD74: =(AG74-AC74)/AG74 -> 0 | AF74: 1 | AG74: =SUM(AJ74:AL74)+AE74 -> 21.75 | AJ74: =ROUND(AC74/(1-VLOOKUP(AF74,Group,2,FALSE)),2) -> 21.75 | AK74: =IF(VLOOKUP(AF74,Group,5,FALSE)="YES",VLOOKUP(ROUND(ROUND(AJ74,1)-AJ74,2),Round,2,FALSE)+VLOOKUP(AF74,Group,6,FALSE),0) -> 0 | AL74: =IF(VLOOKUP(AF74,Group,7,FALSE)="",0,ROUND(AJ74-0.04999,1)-AJ74+AM74) -> 0 | AM74: =IF(VLOOKUP(AF74,Group,7,FALSE)="","",VLOOKUP(AF74,Group,7,FALSE)) ->  | AO74: X
AO75: X
D76: Color: | E76: Desert | AO76: X
AO77: X
B78: Field Tile | E78: 24" x 48" x 6.5mm | G78: Field / Kerlite | K78: Naturale / Rectified | P78: 23.25 SF/CTN | S78: =IF(Suggested="Yes",AA78,AG78) -> 22.6 | T78: SF | U78: =+Instructions!$B$3 -> D | W78: =+Instructions!$C$22 -> 0 | X78: =ROUND($AA78*(1-W78)+0.004999,2) -> 22.6 | AA78: 22.6 | AB78: =+W78 -> 0 | AC78: =+X78 -> 22.6 | AD78: =(AG78-AC78)/AG78 -> 0 | AF78: 1 | AG78: =SUM(AJ78:AL78)+AE78 -> 22.6 | AJ78: =ROUND(AC78/(1-VLOOKUP(AF78,Group,2,FALSE)),2) -> 22.6 | AK78: =IF(VLOOKUP(AF78,Group,5,FALSE)="YES",VLOOKUP(ROUND(ROUND(AJ78,1)-AJ78,2),Round,2,FALSE)+VLOOKUP(AF78,Group,6,FALSE),0) -> 0 | AL78: =IF(VLOOKUP(AF78,Group,7,FALSE)="",0,ROUND(AJ78-0.04999,1)-AJ78+AM78) -> 0 | AM78: =IF(VLOOKUP(AF78,Group,7,FALSE)="","",VLOOKUP(AF78,Group,7,FALSE)) ->  | AO78: X
AO79: X
D80: Color: | E80: Moon | AO80: X
AO81: X
B82: Field Tile | E82: 24" x 48" x 6.5mm | G82: Field / Kerlite | K82: Naturale / Rectified | P82: 23.25 SF/CTN | S82: =IF(Suggested="Yes",AA82,AG82) -> 22.75 | T82: SF | U82: =+Instructions!$B$3 -> D | W82: =+Instructions!$C$22 -> 0 | X82: =ROUND($AA82*(1-W82)+0.004999,2) -> 22.75 | AA82: 22.75 | AB82: =+W82 -> 0 | AC82: =+X82 -> 22.75 | AD82: =(AG82-AC82)/AG82 -> 0 | AF82: 1 | AG82: =SUM(AJ82:AL82)+AE82 -> 22.75 | AJ82: =ROUND(AC82/(1-VLOOKUP(AF82,Group,2,FALSE)),2) -> 22.75 | AK82: =IF(VLOOKUP(AF82,Group,5,FALSE)="YES",VLOOKUP(ROUND(ROUND(AJ82,1)-AJ82,2),Round,2,FALSE)+VLOOKUP(AF82,Group,6,FALSE),0) -> 0 | AL82: =IF(VLOOKUP(AF82,Group,7,FALSE)="",0,ROUND(AJ82-0.04999,1)-AJ82+AM82) -> 0 | AM82: =IF(VLOOKUP(AF82,Group,7,FALSE)="","",VLOOKUP(AF82,Group,7,FALSE)) ->  | AO82: X
AO83: X
C84: METAL | R84: Item # Lookup: | S84: CDME | AO84: X
AO85: X
D86: Colors: | E86: Corten Iron | AO86: X
AO87: X
B88: Field Tile | E88: 39" x 39" x 5.5mm | G88: Field / Kerlite | K88: Naturale / Rectified | P88: 21.53 SF/CTN | S88: =IF(Suggested="Yes",AA88,AG88) -> 21.55 | T88: SF | U88: =+Instructions!$B$3 -> D | W88: =+Instructions!$C$22 -> 0 | X88: =ROUND($AA88*(1-W88)+0.004999,2) -> 21.55 | AA88: 21.55 | AB88: =+W88 -> 0 | AC88: =+X88 -> 21.55 | AD88: =(AG88-AC88)/AG88 -> 0 | AF88: 1 | AG88: =SUM(AJ88:AL88)+AE88 -> 21.55 | AJ88: =ROUND(AC88/(1-VLOOKUP(AF88,Group,2,FALSE)),2) -> 21.55 | AK88: =IF(VLOOKUP(AF88,Group,5,FALSE)="YES",VLOOKUP(ROUND(ROUND(AJ88,1)-AJ88,2),Round,2,FALSE)+VLOOKUP(AF88,Group,6,FALSE),0) -> 0 | AL88: =IF(VLOOKUP(AF88,Group,7,FALSE)="",0,ROUND(AJ88-0.04999,1)-AJ88+AM88) -> 0 | AM88: =IF(VLOOKUP(AF88,Group,7,FALSE)="","",VLOOKUP(AF88,Group,7,FALSE)) ->  | AO88: X
B89: Field Tile | E89: 39" x 118" x 5.5mm | G89: Field / Kerlite | K89: Naturale / Rectified | P89: 32.29 SF/SLAB | R89: a | S89: =IF(Suggested="Yes",AA89,AG89) -> 27.3 | T89: SF | U89: =+Instructions!$B$3 -> D | W89: =+Instructions!$C$22 -> 0 | X89: =ROUND($AA89*(1-W89)+0.004999,2) -> 27.3 | AA89: 27.3 | AB89: =+W89 -> 0 | AC89: =+X89 -> 27.3 | AD89: =(AG89-AC89)/AG89 -> 0 | AF89: 1 | AG89: =SUM(AJ89:AL89)+AE89 -> 27.3 | AJ89: =ROUND(AC89/(1-VLOOKUP(AF89,Group,2,FALSE)),2) -> 27.3 | AK89: =IF(VLOOKUP(AF89,Group,5,FALSE)="YES",VLOOKUP(ROUND(ROUND(AJ89,1)-AJ89,2),Round,2,FALSE)+VLOOKUP(AF89,Group,6,FALSE),0) -> 0 | AL89: =IF(VLOOKUP(AF89,Group,7,FALSE)="",0,ROUND(AJ89-0.04999,1)-AJ89+AM89) -> 0 | AM89: =IF(VLOOKUP(AF89,Group,7,FALSE)="","",VLOOKUP(AF89,Group,7,FALSE)) ->  | AO89: X
AO90: X
D91: Note: | E91: a) There is an additional crate charge of $474.50 for each crate used for shipment. There is 419.77 sf per crate. | AO91: X
AO92: X
C93: PIETRA D'ISEO | R93: Item # Lookup: | S93: CDPD | AO93: X
AO94: X
D95: Color: | E95: Ceppo | AO95: X
AO96: X
B97: Field Tile | E97: 24" x 48" x 6.5mm | G97: Field / Kerlite | K97: Naturale / Rectified | P97: 31.00 SF/CTN | R97: a | S97: =IF(Suggested="Yes",AA97,AG97) -> 24.45 | T97: SF | U97: =+Instructions!$B$3 -> D | W97: =+Instructions!$C$22 -> 0 | X97: =ROUND($AA97*(1-W97)+0.004999,2) -> 24.45 | AA97: 24.45 | AB97: =+W97 -> 0 | AC97: 24.45 | AD97: =(AG97-AC97)/AG97 -> 0 | AF97: 1 | AG97: =SUM(AJ97:AL97)+AE97 -> 24.45 | AJ97: =ROUND(AC97/(1-VLOOKUP(AF97,Group,2,FALSE)),2) -> 24.45 | AK97: =IF(VLOOKUP(AF97,Group,5,FALSE)="YES",VLOOKUP(ROUND(ROUND(AJ97,1)-AJ97,2),Round,2,FALSE)+VLOOKUP(AF97,Group,6,FALSE),0) -> 0 | AL97: =IF(VLOOKUP(AF97,Group,7,FALSE)="",0,ROUND(AJ97-0.04999,1)-AJ97+AM97) -> 0 | AM97: =IF(VLOOKUP(AF97,Group,7,FALSE)="","",VLOOKUP(AF97,Group,7,FALSE)) ->  | AO97: X
AO98: X
D99: Notes: | E99: a) Packaging is changing from 31.00 SF/CTN to 23.25 SF/CTN as inventory with old packaging is depleted. | AO99: X
AO100: X
C101: VANITY | R101: Item # Lookup: | S101: CDVA | AO101: X
AO102: X
D103: Colors: | E103: Bianco Statuario Onice Royal | AO103: X
AO104: X
B105: Field Tile | E105: 24" x 48" x 6.5mm | G105: Field / Kerlite | L105: Glossy / Rectified | P105: 23.25 SF/CTN | S105: =IF(Suggested="Yes",AA105,AG105) -> 28.35 | T105: SF | U105: =+Instructions!$B$3 -> D | W105: =+Instructions!$C$22 -> 0 | X105: =ROUND($AA105*(1-W105)+0.004999,2) -> 28.35 | AA105: 28.35 | AB105: =+W105 -> 0 | AC105: 28.35 | AD105: =(AG105-AC105)/AG105 -> 0 | AF105: 1 | AG105: =SUM(AJ105:AL105)+AE105 -> 28.35 | AJ105: =ROUND(AC105/(1-VLOOKUP(AF105,Group,2,FALSE)),2) -> 28.35 | AK105: =IF(VLOOKUP(AF105,Group,5,FALSE)="YES",VLOOKUP(ROUND(ROUND(AJ105,1)-AJ105,2),Round,2,FALSE)+VLOOKUP(AF105,Group,6,FALSE),0) -> 0 | AL105: =IF(VLOOKUP(AF105,Group,7,FALSE)="",0,ROUND(AJ105-0.04999,1)-AJ105+AM105) -> 0 | AM105: =IF(VLOOKUP(AF105,Group,7,FALSE)="","",VLOOKUP(AF105,Group,7,FALSE)) ->  | AO105: X
AO106: X
D107: Color: | E107: Bianco Statuario | AO107: X
AO108: X
B109: Field Tile | E109: 48" x 102" x 6.5mm | G109: Field / Kerlite | L109: Glossy / Rectified | P109: 33.58 SF/CTN | R109: a | S109: =IF(Suggested="Yes",AA109,AG109) -> 29.8 | T109: SF | U109: =+Instructions!$B$3 -> D | W109: =+Instructions!$C$22 -> 0 | X109: =ROUND($AA109*(1-W109)+0.004999,2) -> 29.8 | AA109: 29.8 | AB109: 0 | AC109: 29.8 | AD109: =(AG109-AC109)/AG109 -> 0 | AF109: 1 | AG109: =SUM(AJ109:AL109)+AE109 -> 29.8 | AJ109: =ROUND(AC109/(1-VLOOKUP(AF109,Group,2,FALSE)),2) -> 29.8 | AK109: =IF(VLOOKUP(AF109,Group,5,FALSE)="YES",VLOOKUP(ROUND(ROUND(AJ109,1)-AJ109,2),Round,2,FALSE)+VLOOKUP(AF109,Group,6,FALSE),0) -> 0 | AL109: =IF(VLOOKUP(AF109,Group,7,FALSE)="",0,ROUND(AJ109-0.04999,1)-AJ109+AM109) -> 0 | AM109: =IF(VLOOKUP(AF109,Group,7,FALSE)="","",VLOOKUP(AF109,Group,7,FALSE)) ->  | AO109: X
AO110: X
D111: Color: | E111: Dark Brown | AO111: X
AO112: X
B113: Field Tile | E113: 48" x 102" x 6.5mm | G113: Field / Kerlite | L113: Glossy / Rectified | P113: 33.58 SF/CTN | R113: a | S113: =IF(Suggested="Yes",AA113,AG113) -> 30.15 | T113: SF | U113: =+Instructions!$B$3 -> D | W113: =+Instructions!$C$22 -> 0 | X113: =ROUND($AA113*(1-W113)+0.004999,2) -> 30.15 | AA113: 30.15 | AB113: =+W113 -> 0 | AC113: =+X113 -> 30.15 | AD113: =(AG113-AC113)/AG113 -> 0 | AF113: 1 | AG113: =SUM(AJ113:AL113)+AE113 -> 30.15 | AJ113: =ROUND(AC113/(1-VLOOKUP(AF113,Group,2,FALSE)),2) -> 30.15 | AK113: =IF(VLOOKUP(AF113,Group,5,FALSE)="YES",VLOOKUP(ROUND(ROUND(AJ113,1)-AJ113,2),Round,2,FALSE)+VLOOKUP(AF113,Group,6,FALSE),0) -> 0 | AL113: =IF(VLOOKUP(AF113,Group,7,FALSE)="",0,ROUND(AJ113-0.04999,1)-AJ113+AM113) -> 0 | AM113: =IF(VLOOKUP(AF113,Group,7,FALSE)="","",VLOOKUP(AF113,Group,7,FALSE)) ->  | AO113: X
AO114: X
D115: Color: | E115: Bianco Luce | AO115: X
AO116: X
B117: Field Tile | E117: 24" x 48" x 6.5mm | G117: Field / Kerlite | L117: Touch / Rectified | P117: 23.25 SF/CTN | S117: =IF(Suggested="Yes",AA117,AG117) -> 28.9 | T117: SF | U117: =+Instructions!$B$3 -> D | W117: =+Instructions!$C$22 -> 0 | X117: =ROUND($AA117*(1-W117)+0.004999,2) -> 28.9 | AA117: 28.9 | AB117: =+W117 -> 0 | AC117: 28.9 | AD117: =(AG117-AC117)/AG117 -> 0 | AF117: 1 | AG117: =SUM(AJ117:AL117)+AE117 -> 28.9 | AJ117: =ROUND(AC117/(1-VLOOKUP(AF117,Group,2,FALSE)),2) -> 28.9 | AK117: =IF(VLOOKUP(AF117,Group,5,FALSE)="YES",VLOOKUP(ROUND(ROUND(AJ117,1)-AJ117,2),Round,2,FALSE)+VLOOKUP(AF117,Group,6,FALSE),0) -> 0 | AL117: =IF(VLOOKUP(AF117,Group,7,FALSE)="",0,ROUND(AJ117-0.04999,1)-AJ117+AM117) -> 0 | AM117: =IF(VLOOKUP(AF117,Group,7,FALSE)="","",VLOOKUP(AF117,Group,7,FALSE)) ->  | AO117: X
AO118: X
D119: Color: | E119: Pietra Grey | AO119: X
AO120: X
B121: Field Tile | E121: 24" x 48" x 6.5mm | G121: Field / Kerlite | L121: Touch / Rectified | P121: 23.25 SF/CTN | S121: =IF(Suggested="Yes",AA121,AG121) -> 28.35 | T121: SF | U121: =+Instructions!$B$3 -> D | W121: =+Instructions!$C$22 -> 0 | X121: =ROUND($AA121*(1-W121)+0.004999,2) -> 28.35 | AA121: 28.35 | AB121: =+W121 -> 0 | AC121: =+X121 -> 28.35 | AD121: =(AG121-AC121)/AG121 -> 0 | AF121: 1 | AG121: =SUM(AJ121:AL121)+AE121 -> 28.35 | AJ121: =ROUND(AC121/(1-VLOOKUP(AF121,Group,2,FALSE)),2) -> 28.35 | AK121: =IF(VLOOKUP(AF121,Group,5,FALSE)="YES",VLOOKUP(ROUND(ROUND(AJ121,1)-AJ121,2),Round,2,FALSE)+VLOOKUP(AF121,Group,6,FALSE),0) -> 0 | AL121: =IF(VLOOKUP(AF121,Group,7,FALSE)="",0,ROUND(AJ121-0.04999,1)-AJ121+AM121) -> 0 | AM121: =IF(VLOOKUP(AF121,Group,7,FALSE)="","",VLOOKUP(AF121,Group,7,FALSE)) ->  | AO121: X
AO122: X
D123: Color: | E123: Bianco Statuario | AO123: X
AO124: X
B125: Field Tile | E125: 48" x 102" x 6.5mm | G125: Field / Kerlite | L125: Touch / Rectified | P125: 33.58 SF/CTN | R125: a | S125: =IF(Suggested="Yes",AA125,AG125) -> 29.8 | T125: SF | U125: =+Instructions!$B$3 -> D | W125: =+Instructions!$C$22 -> 0 | X125: =ROUND($AA125*(1-W125)+0.004999,2) -> 29.8 | AA125: 29.8 | AB125: 0 | AC125: 29.8 | AD125: =(AG125-AC125)/AG125 -> 0 | AF125: 1 | AG125: =SUM(AJ125:AL125)+AE125 -> 29.8 | AJ125: =ROUND(AC125/(1-VLOOKUP(AF125,Group,2,FALSE)),2) -> 29.8 | AK125: =IF(VLOOKUP(AF125,Group,5,FALSE)="YES",VLOOKUP(ROUND(ROUND(AJ125,1)-AJ125,2),Round,2,FALSE)+VLOOKUP(AF125,Group,6,FALSE),0) -> 0 | AL125: =IF(VLOOKUP(AF125,Group,7,FALSE)="",0,ROUND(AJ125-0.04999,1)-AJ125+AM125) -> 0 | AM125: =IF(VLOOKUP(AF125,Group,7,FALSE)="","",VLOOKUP(AF125,Group,7,FALSE)) ->  | AO125: X
C126: continued on next page | AO126: X
C127: VANITY - continued | R127: Item # Lookup: | S127: CDVA | AO127: X
AO128: X
D129: Color: | E129: Dark Brown | AO129: X
AO130: X
B131: Field Tile | E131: 48" x 102" x 6.5mm | G131: Field / Kerlite | L131: Touch / Rectified | P131: 33.58 SF/CTN | R131: a | S131: =IF(Suggested="Yes",AA131,AG131) -> 30.15 | T131: SF | U131: =+Instructions!$B$3 -> D | W131: =+Instructions!$C$22 -> 0 | X131: =ROUND($AA131*(1-W131)+0.004999,2) -> 30.15 | AA131: 30.15 | AB131: =+W131 -> 0 | AC131: =+X131 -> 30.15 | AD131: =(AG131-AC131)/AG131 -> 0 | AF131: 1 | AG131: =SUM(AJ131:AL131)+AE131 -> 30.15 | AJ131: =ROUND(AC131/(1-VLOOKUP(AF131,Group,2,FALSE)),2) -> 30.15 | AK131: =IF(VLOOKUP(AF131,Group,5,FALSE)="YES",VLOOKUP(ROUND(ROUND(AJ131,1)-AJ131,2),Round,2,FALSE)+VLOOKUP(AF131,Group,6,FALSE),0) -> 0 | AL131: =IF(VLOOKUP(AF131,Group,7,FALSE)="",0,ROUND(AJ131-0.04999,1)-AJ131+AM131) -> 0 | AM131: =IF(VLOOKUP(AF131,Group,7,FALSE)="","",VLOOKUP(AF131,Group,7,FALSE)) ->  | AO131: X
AO132: X
D133: Note: | E133: a) There is an additional crate charge of $474.50 for each crate used for shipment for colors Bianco Statuario and Dark Brown. There is 604.44 sf per crate. | AO133: X
AO134: X
C135: WONDERWALL | R135: Item # Lookup: | S135: CDWW | AO135: X
AO136: X
D137: Color: | E137: Blanc | AO137: X
AO138: X
B139: Italy | E139: 19-1/2" x 39" x 3.5mm | G139: Field Motif / Kerlite | K139: Blanc / Rectified | P139: 10.76 SF/CTN | R139: a | S139: =IF(Suggested="Yes",AA139,AG139) -> 58.85 | T139: SF | U139: =+Instructions!$B$3 -> D | W139: =+Instructions!$C$22 -> 0 | X139: =ROUND($AA139*(1-W139)+0.004999,2) -> 58.85 | AA139: 58.85 | AB139: =+W139 -> 0 | AC139: =+X139 -> 58.85 | AD139: =(AG139-AC139)/AG139 -> 0 | AF139: 4 | AG139: =SUM(AJ139:AL139)+AE139 -> 58.85 | AJ139: =ROUND(AC139/(1-VLOOKUP(AF139,Group,2,FALSE)),2) -> 58.85 | AK139: =IF(VLOOKUP(AF139,Group,5,FALSE)="YES",VLOOKUP(ROUND(ROUND(AJ139,1)-AJ139,2),Round,2,FALSE)+VLOOKUP(AF139,Group,6,FALSE),0) -> 0 | AL139: =IF(VLOOKUP(AF139,Group,7,FALSE)="",0,ROUND(AJ139-0.04999,1)-AJ139+AM139) -> 0 | AM139: =IF(VLOOKUP(AF139,Group,7,FALSE)="","",VLOOKUP(AF139,Group,7,FALSE)) ->  | AO139: X
B140: Italy | E140: 39" x 118" x 3.5mm | G140: Field Motif / Kerlite | K140: Blanc / Rectified | R140: a | S140: =IF(Suggested="Yes",AA140,AG140) -> 1243.8 | T140: EA | U140: =+Instructions!$B$3 -> D | W140: =+Instructions!$C$22 -> 0 | X140: =ROUND($AA140*(1-W140)+0.004999,2) -> 1243.8 | AA140: 1243.8 | AB140: =+W140 -> 0 | AC140: =+X140 -> 1243.8 | AD140: =(AG140-AC140)/AG140 -> 0 | AF140: 4 | AG140: =SUM(AJ140:AL140)+AE140 -> 1243.8 | AJ140: =ROUND(AC140/(1-VLOOKUP(AF140,Group,2,FALSE)),2) -> 1243.8 | AK140: =IF(VLOOKUP(AF140,Group,5,FALSE)="YES",VLOOKUP(ROUND(ROUND(AJ140,1)-AJ140,2),Round,2,FALSE)+VLOOKUP(AF140,Group,6,FALSE),0) -> 0 | AL140: =IF(VLOOKUP(AF140,Group,7,FALSE)="",0,ROUND(AJ140-0.04999,1)-AJ140+AM140) -> 0 | AM140: =IF(VLOOKUP(AF140,Group,7,FALSE)="","",VLOOKUP(AF140,Group,7,FALSE)) ->  | AO140: X
AO141: X
D142: Color: | E142: Freestyle | AO142: X
AO143: X
B144: Italy | E144: 39" x 118" x 3.5mm | G144: Field Motif / Kerlite | K144: Freestyle / Rectified | R144: b | S144: =IF(Suggested="Yes",AA144,AG144) -> 1243.8 | T144: EA | U144: =+Instructions!$B$3 -> D | W144: =+Instructions!$C$22 -> 0 | X144: =ROUND($AA144*(1-W144)+0.004999,2) -> 1243.8 | AA144: 1243.8 | AB144: =+W144 -> 0 | AC144: =+X144 -> 1243.8 | AD144: =(AG144-AC144)/AG144 -> 0 | AF144: 4 | AG144: =SUM(AJ144:AL144)+AE144 -> 1243.8 | AJ144: =ROUND(AC144/(1-VLOOKUP(AF144,Group,2,FALSE)),2) -> 1243.8 | AK144: =IF(VLOOKUP(AF144,Group,5,FALSE)="YES",VLOOKUP(ROUND(ROUND(AJ144,1)-AJ144,2),Round,2,FALSE)+VLOOKUP(AF144,Group,6,FALSE),0) -> 0 | AL144: =IF(VLOOKUP(AF144,Group,7,FALSE)="",0,ROUND(AJ144-0.04999,1)-AJ144+AM144) -> 0 | AM144: =IF(VLOOKUP(AF144,Group,7,FALSE)="","",VLOOKUP(AF144,Group,7,FALSE)) ->  | AO144: X
AO145: X
D146: Decorative Motifs: | AO146: X
AO147: X
B148: Italy | E148: 39" x 118" x 3.5mm | G148: Motif / Kerlite | J148: Bamboo A | L148: Naturale / Rectified | S148: =IF(Suggested="Yes",AA148,AG148) -> 1243.8 | T148: EA | U148: =+Instructions!$B$3 -> D | W148: =+Instructions!$C$22 -> 0 | X148: =ROUND($AA148*(1-W148)+0.004999,2) -> 1243.8 | AA148: 1243.8 | AB148: =+W148 -> 0 | AC148: =+X148 -> 1243.8 | AD148: =(AG148-AC148)/AG148 -> 0 | AF148: 4 | AG148: =SUM(AJ148:AL148)+AE148 -> 1243.8 | AJ148: =ROUND(AC148/(1-VLOOKUP(AF148,Group,2,FALSE)),2) -> 1243.8 | AK148: =IF(VLOOKUP(AF148,Group,5,FALSE)="YES",VLOOKUP(ROUND(ROUND(AJ148,1)-AJ148,2),Round,2,FALSE)+VLOOKUP(AF148,Group,6,FALSE),0) -> 0 | AL148: =IF(VLOOKUP(AF148,Group,7,FALSE)="",0,ROUND(AJ148-0.04999,1)-AJ148+AM148) -> 0 | AM148: =IF(VLOOKUP(AF148,Group,7,FALSE)="","",VLOOKUP(AF148,Group,7,FALSE)) ->  | AO148: X
B149: Italy | E149: 39" x 118" x 3.5mm | G149: Motif / Kerlite | J149: Bamboo B | L149: Naturale / Rectified | S149: 1243.8 | T149: EA | U149: =+Instructions!$B$3 -> D | W149: =+Instructions!$C$22 -> 0 | X149: 1243.8 | AA149: 1243.8 | AB149: 0 | AC149: 1243.8 | AD149: 0 | AF149: 4 | AG149: 1243.8 | AJ149: 1243.8 | AK149: 0 | AL149: 0 | AO149: X
B150: Italy | E150: 39" x 118" x 3.5mm | G150: Motif / Kerlite | J150: Bamboo C | L150: Naturale / Rectified | S150: 1243.8 | T150: EA | U150: =+Instructions!$B$3 -> D | W150: =+Instructions!$C$22 -> 0 | X150: 1243.8 | AA150: 1243.8 | AB150: 0 | AC150: 1243.8 | AD150: 0 | AF150: 4 | AG150: 1243.8 | AJ150: 1243.8 | AK150: 0 | AL150: 0 | AO150: X
AO151: X
B152: Italy | E152: 19-1/2" x 39" x 3.5mm | G152: Motif / Kerlite | J152: Botany A & B | L152: Naturale / Rectified | P152: 10.76 SF/CTN | R152: c | S152: =IF(Suggested="Yes",AA152,AG152) -> 58.85 | T152: SF | U152: =+Instructions!$B$3 -> D | W152: =+Instructions!$C$22 -> 0 | X152: =ROUND($AA152*(1-W152)+0.004999,2) -> 58.85 | AA152: 58.85 | AB152: =+W152 -> 0 | AC152: =+X152 -> 58.85 | AD152: =(AG152-AC152)/AG152 -> 0 | AF152: 4 | AG152: =SUM(AJ152:AL152)+AE152 -> 58.85 | AJ152: =ROUND(AC152/(1-VLOOKUP(AF152,Group,2,FALSE)),2) -> 58.85 | AK152: =IF(VLOOKUP(AF152,Group,5,FALSE)="YES",VLOOKUP(ROUND(ROUND(AJ152,1)-AJ152,2),Round,2,FALSE)+VLOOKUP(AF152,Group,6,FALSE),0) -> 0 | AL152: =IF(VLOOKUP(AF152,Group,7,FALSE)="",0,ROUND(AJ152-0.04999,1)-AJ152+AM152) -> 0 | AM152: =IF(VLOOKUP(AF152,Group,7,FALSE)="","",VLOOKUP(AF152,Group,7,FALSE)) ->  | AO152: X
B153: Italy | E153: 39" x 118" x 3.5mm | G153: Motif / Kerlite | J153: Botany A | L153: Naturale / Rectified | S153: =IF(Suggested="Yes",AA153,AG153) -> 1243.8 | T153: EA | U153: =+Instructions!$B$3 -> D | W153: =+Instructions!$C$22 -> 0 | X153: =ROUND($AA153*(1-W153)+0.004999,2) -> 1243.8 | AA153: 1243.8 | AB153: =+W153 -> 0 | AC153: =+X153 -> 1243.8 | AD153: =(AG153-AC153)/AG153 -> 0 | AF153: 4 | AG153: =SUM(AJ153:AL153)+AE153 -> 1243.8 | AJ153: =ROUND(AC153/(1-VLOOKUP(AF153,Group,2,FALSE)),2) -> 1243.8 | AK153: =IF(VLOOKUP(AF153,Group,5,FALSE)="YES",VLOOKUP(ROUND(ROUND(AJ153,1)-AJ153,2),Round,2,FALSE)+VLOOKUP(AF153,Group,6,FALSE),0) -> 0 | AL153: =IF(VLOOKUP(AF153,Group,7,FALSE)="",0,ROUND(AJ153-0.04999,1)-AJ153+AM153) -> 0 | AM153: =IF(VLOOKUP(AF153,Group,7,FALSE)="","",VLOOKUP(AF153,Group,7,FALSE)) ->  | AO153: X
B154: Italy | E154: 39" x 118" x 3.5mm | G154: Motif / Kerlite | J154: Botany B | L154: Naturale / Rectified | S154: 1243.8 | T154: EA | U154: =+Instructions!$B$3 -> D | W154: =+Instructions!$C$22 -> 0 | X154: 1243.8 | AA154: 1243.8 | AB154: 0 | AC154: 1243.8 | AD154: 0 | AF154: 4 | AG154: 1243.8 | AJ154: 1243.8 | AK154: 0 | AL154: 0 | AO154: X
B155: Italy | E155: 39" x 118" x 3.5mm | G155: Motif / Kerlite | J155: Botany C | L155: Naturale / Rectified | S155: 1243.8 | T155: EA | U155: =+Instructions!$B$3 -> D | W155: =+Instructions!$C$22 -> 0 | X155: 1243.8 | AA155: 1243.8 | AB155: 0 | AC155: 1243.8 | AD155: 0 | AF155: 4 | AG155: 1243.8 | AJ155: 1243.8 | AK155: 0 | AL155: 0 | AO155: X
AO156: X
B157: Italy | E157: 39" x 118" x 3.5mm | G157: Motif / Kerlite | J157: Color Ballet A | L157: Naturale / Rectified | S157: =IF(Suggested="Yes",AA157,AG157) -> 1243.8 | T157: EA | U157: =+Instructions!$B$3 -> D | W157: =+Instructions!$C$22 -> 0 | X157: =ROUND($AA157*(1-W157)+0.004999,2) -> 1243.8 | AA157: 1243.8 | AB157: =+W157 -> 0 | AC157: 1243.8 | AD157: =(AG157-AC157)/AG157 -> 0 | AF157: 4 | AG157: =SUM(AJ157:AL157)+AE157 -> 1243.8 | AJ157: =ROUND(AC157/(1-VLOOKUP(AF157,Group,2,FALSE)),2) -> 1243.8 | AK157: =IF(VLOOKUP(AF157,Group,5,FALSE)="YES",VLOOKUP(ROUND(ROUND(AJ157,1)-AJ157,2),Round,2,FALSE)+VLOOKUP(AF157,Group,6,FALSE),0) -> 0 | AL157: =IF(VLOOKUP(AF157,Group,7,FALSE)="",0,ROUND(AJ157-0.04999,1)-AJ157+AM157) -> 0 | AM157: =IF(VLOOKUP(AF157,Group,7,FALSE)="","",VLOOKUP(AF157,Group,7,FALSE)) ->  | AO157: X
B158: Italy | E158: 39" x 118" x 3.5mm | G158: Motif / Kerlite | J158: Color Ballet B | L158: Naturale / Rectified | S158: =IF(Suggested="Yes",AA158,AG158) -> 1243.8 | T158: EA | U158: =+Instructions!$B$3 -> D | W158: =+Instructions!$C$22 -> 0 | X158: =ROUND($AA158*(1-W158)+0.004999,2) -> 1243.8 | AA158: 1243.8 | AB158: =+W158 -> 0 | AC158: =+X158 -> 1243.8 | AD158: =(AG158-AC158)/AG158 -> 0 | AF158: 4 | AG158: =SUM(AJ158:AL158)+AE158 -> 1243.8 | AJ158: =ROUND(AC158/(1-VLOOKUP(AF158,Group,2,FALSE)),2) -> 1243.8 | AK158: =IF(VLOOKUP(AF158,Group,5,FALSE)="YES",VLOOKUP(ROUND(ROUND(AJ158,1)-AJ158,2),Round,2,FALSE)+VLOOKUP(AF158,Group,6,FALSE),0) -> 0 | AL158: =IF(VLOOKUP(AF158,Group,7,FALSE)="",0,ROUND(AJ158-0.04999,1)-AJ158+AM158) -> 0 | AM158: =IF(VLOOKUP(AF158,Group,7,FALSE)="","",VLOOKUP(AF158,Group,7,FALSE)) ->  | AO158: X
B159: Italy | E159: 39" x 118" x 3.5mm | G159: Motif / Kerlite | J159: Color Ballet C | L159: Naturale / Rectified | S159: =IF(Suggested="Yes",AA159,AG159) -> 1243.8 | T159: EA | U159: =+Instructions!$B$3 -> D | W159: =+Instructions!$C$22 -> 0 | X159: =ROUND($AA159*(1-W159)+0.004999,2) -> 1243.8 | AA159: 1243.8 | AB159: 0 | AC159: 1243.8 | AD159: =(AG159-AC159)/AG159 -> 0 | AF159: 4 | AG159: =SUM(AJ159:AL159)+AE159 -> 1243.8 | AJ159: =ROUND(AC159/(1-VLOOKUP(AF159,Group,2,FALSE)),2) -> 1243.8 | AK159: =IF(VLOOKUP(AF159,Group,5,FALSE)="YES",VLOOKUP(ROUND(ROUND(AJ159,1)-AJ159,2),Round,2,FALSE)+VLOOKUP(AF159,Group,6,FALSE),0) -> 0 | AL159: =IF(VLOOKUP(AF159,Group,7,FALSE)="",0,ROUND(AJ159-0.04999,1)-AJ159+AM159) -> 0 | AM159: =IF(VLOOKUP(AF159,Group,7,FALSE)="","",VLOOKUP(AF159,Group,7,FALSE)) ->  | AO159: X
AO160: X
B161: Italy | E161: 39" x 118" x 3.5mm | G161: Motif / Kerlite | J161: Dream A | L161: Naturale / Rectified | S161: =IF(Suggested="Yes",AA161,AG161) -> 1243.8 | T161: EA | U161: =+Instructions!$B$3 -> D | W161: =+Instructions!$C$22 -> 0 | X161: =ROUND($AA161*(1-W161)+0.004999,2) -> 1243.8 | AA161: 1243.8 | AB161: =+W161 -> 0 | AC161: 1243.8 | AD161: =(AG161-AC161)/AG161 -> 0 | AF161: 4 | AG161: =SUM(AJ161:AL161)+AE161 -> 1243.8 | AJ161: =ROUND(AC161/(1-VLOOKUP(AF161,Group,2,FALSE)),2) -> 1243.8 | AK161: =IF(VLOOKUP(AF161,Group,5,FALSE)="YES",VLOOKUP(ROUND(ROUND(AJ161,1)-AJ161,2),Round,2,FALSE)+VLOOKUP(AF161,Group,6,FALSE),0) -> 0 | AL161: =IF(VLOOKUP(AF161,Group,7,FALSE)="",0,ROUND(AJ161-0.04999,1)-AJ161+AM161) -> 0 | AM161: =IF(VLOOKUP(AF161,Group,7,FALSE)="","",VLOOKUP(AF161,Group,7,FALSE)) ->  | AO161: X
B162: Italy | E162: 39" x 118" x 3.5mm | G162: Motif / Kerlite | J162: Dream B | L162: Naturale / Rectified | S162: 1243.8 | T162: EA | U162: =+Instructions!$B$3 -> D | W162: =+Instructions!$C$22 -> 0 | X162: 1243.8 | AA162: 1243.8 | AB162: 0 | AC162: 1243.8 | AD162: 0 | AF162: 4 | AG162: 1243.8 | AJ162: 1243.8 | AK162: 0 | AL162: 0 | AO162: X
B163: Italy | E163: 39" x 118" x 3.5mm | G163: Motif / Kerlite | J163: Dream C | L163: Naturale / Rectified | S163: 1243.8 | T163: EA | U163: =+Instructions!$B$3 -> D | W163: =+Instructions!$C$22 -> 0 | X163: 1243.8 | AA163: 1243.8 | AB163: 0 | AC163: 1243.8 | AD163: 0 | AF163: 4 | AG163: 1243.8 | AJ163: 1243.8 | AK163: 0 | AL163: 0 | AO163: X
AO164: X
B165: Italy | E165: 19-1/2" x 39" x 3.5mm | G165: Motif / Kerlite | J165: Fleur A | L165: Naturale / Rectified | P165: 10.76 SF/CTN | R165: a | S165: =IF(Suggested="Yes",AA165,AG165) -> 58.85 | T165: SF | U165: =+Instructions!$B$3 -> D | W165: =+Instructions!$C$22 -> 0 | X165: =ROUND($AA165*(1-W165)+0.004999,2) -> 58.85 | AA165: 58.85 | AB165: =+W165 -> 0 | AC165: =+X165 -> 58.85 | AD165: =(AG165-AC165)/AG165 -> 0 | AF165: 4 | AG165: =SUM(AJ165:AL165)+AE165 -> 58.85 | AJ165: =ROUND(AC165/(1-VLOOKUP(AF165,Group,2,FALSE)),2) -> 58.85 | AK165: =IF(VLOOKUP(AF165,Group,5,FALSE)="YES",VLOOKUP(ROUND(ROUND(AJ165,1)-AJ165,2),Round,2,FALSE)+VLOOKUP(AF165,Group,6,FALSE),0) -> 0 | AL165: =IF(VLOOKUP(AF165,Group,7,FALSE)="",0,ROUND(AJ165-0.04999,1)-AJ165+AM165) -> 0 | AM165: =IF(VLOOKUP(AF165,Group,7,FALSE)="","",VLOOKUP(AF165,Group,7,FALSE)) ->  | AO165: X
B166: Italy | E166: 19-1/2" x 39" x 3.5mm | G166: Motif / Kerlite | J166: Fleur B | L166: Naturale / Rectified | P166: 10.76 SF/CTN | R166: a | S166: =IF(Suggested="Yes",AA166,AG166) -> 58.85 | T166: SF | U166: =+Instructions!$B$3 -> D | W166: =+Instructions!$C$22 -> 0 | X166: =ROUND($AA166*(1-W166)+0.004999,2) -> 58.85 | AA166: 58.85 | AB166: =+W166 -> 0 | AC166: 58.85 | AD166: =(AG166-AC166)/AG166 -> 0 | AF166: 4 | AG166: =SUM(AJ166:AL166)+AE166 -> 58.85 | AJ166: =ROUND(AC166/(1-VLOOKUP(AF166,Group,2,FALSE)),2) -> 58.85 | AK166: =IF(VLOOKUP(AF166,Group,5,FALSE)="YES",VLOOKUP(ROUND(ROUND(AJ166,1)-AJ166,2),Round,2,FALSE)+VLOOKUP(AF166,Group,6,FALSE),0) -> 0 | AL166: =IF(VLOOKUP(AF166,Group,7,FALSE)="",0,ROUND(AJ166-0.04999,1)-AJ166+AM166) -> 0 | AM166: =IF(VLOOKUP(AF166,Group,7,FALSE)="","",VLOOKUP(AF166,Group,7,FALSE)) ->  | AO166: X
B167: Italy | E167: 19-1/2" x 39" x 3.5mm | G167: Motif / Kerlite | J167: Fleur C | L167: Naturale / Rectified | P167: 10.76 SF/CTN | R167: a | S167: 58.85 | T167: SF | U167: =+Instructions!$B$3 -> D | W167: =+Instructions!$C$22 -> 0 | X167: 58.85 | AA167: 58.85 | AB167: =+W167 -> 0 | AC167: =+X167 -> 58.85 | AD167: 0 | AF167: 4 | AG167: 58.85 | AJ167: 58.85 | AK167: 0 | AL167: 0 | AO167: X
B168: Italy | E168: 19-1/2" x 39" x 3.5mm | G168: Motif / Kerlite | J168: Fleur D | L168: Naturale / Rectified | P168: 10.76 SF/CTN | R168: a | S168: =IF(Suggested="Yes",AA168,AG168) -> 58.85 | T168: SF | U168: =+Instructions!$B$3 -> D | W168: =+Instructions!$C$22 -> 0 | X168: =ROUND($AA168*(1-W168)+0.004999,2) -> 58.85 | AA168: 58.85 | AB168: =+W168 -> 0 | AC168: =+X168 -> 58.85 | AD168: =(AG168-AC168)/AG168 -> 0 | AF168: 4 | AG168: =SUM(AJ168:AL168)+AE168 -> 58.85 | AJ168: =ROUND(AC168/(1-VLOOKUP(AF168,Group,2,FALSE)),2) -> 58.85 | AK168: =IF(VLOOKUP(AF168,Group,5,FALSE)="YES",VLOOKUP(ROUND(ROUND(AJ168,1)-AJ168,2),Round,2,FALSE)+VLOOKUP(AF168,Group,6,FALSE),0) -> 0 | AL168: =IF(VLOOKUP(AF168,Group,7,FALSE)="",0,ROUND(AJ168-0.04999,1)-AJ168+AM168) -> 0 | AM168: =IF(VLOOKUP(AF168,Group,7,FALSE)="","",VLOOKUP(AF168,Group,7,FALSE)) ->  | AO168: X
B169: Italy | E169: 19-1/2" x 39" x 3.5mm | G169: Motif / Kerlite | J169: Fleur E | L169: Naturale / Rectified | P169: 10.76 SF/CTN | R169: a | S169: =IF(Suggested="Yes",AA169,AG169) -> 58.85 | T169: SF | U169: =+Instructions!$B$3 -> D | W169: =+Instructions!$C$22 -> 0 | X169: =ROUND($AA169*(1-W169)+0.004999,2) -> 58.85 | AA169: 58.85 | AB169: 0 | AC169: 58.85 | AD169: =(AG169-AC169)/AG169 -> 0 | AF169: 4 | AG169: =SUM(AJ169:AL169)+AE169 -> 58.85 | AJ169: =ROUND(AC169/(1-VLOOKUP(AF169,Group,2,FALSE)),2) -> 58.85 | AK169: =IF(VLOOKUP(AF169,Group,5,FALSE)="YES",VLOOKUP(ROUND(ROUND(AJ169,1)-AJ169,2),Round,2,FALSE)+VLOOKUP(AF169,Group,6,FALSE),0) -> 0 | AL169: =IF(VLOOKUP(AF169,Group,7,FALSE)="",0,ROUND(AJ169-0.04999,1)-AJ169+AM169) -> 0 | AM169: =IF(VLOOKUP(AF169,Group,7,FALSE)="","",VLOOKUP(AF169,Group,7,FALSE)) ->  | AO169: X
AO170: X
B171: Italy | E171: 19-1/2" x 39" x 3.5mm | G171: Motif / Kerlite | J171: Foliage A & B | L171: Naturale / Rectified | P171: 10.76 SF/CTN | R171: c | S171: =IF(Suggested="Yes",AA171,AG171) -> 58.85 | T171: SF | U171: =+Instructions!$B$3 -> D | W171: =+Instructions!$C$22 -> 0 | X171: =ROUND($AA171*(1-W171)+0.004999,2) -> 58.85 | AA171: 58.85 | AB171: =+W171 -> 0 | AC171: =+X171 -> 58.85 | AD171: =(AG171-AC171)/AG171 -> 0 | AF171: 4 | AG171: =SUM(AJ171:AL171)+AE171 -> 58.85 | AJ171: =ROUND(AC171/(1-VLOOKUP(AF171,Group,2,FALSE)),2) -> 58.85 | AK171: =IF(VLOOKUP(AF171,Group,5,FALSE)="YES",VLOOKUP(ROUND(ROUND(AJ171,1)-AJ171,2),Round,2,FALSE)+VLOOKUP(AF171,Group,6,FALSE),0) -> 0 | AL171: =IF(VLOOKUP(AF171,Group,7,FALSE)="",0,ROUND(AJ171-0.04999,1)-AJ171+AM171) -> 0 | AM171: =IF(VLOOKUP(AF171,Group,7,FALSE)="","",VLOOKUP(AF171,Group,7,FALSE)) ->  | AO171: X
B172: Italy | E172: 39" x 118" x 3.5mm | G172: Motif / Kerlite | J172: Foliage A | L172: Naturale / Rectified | S172: 1243.8 | T172: EA | U172: =+Instructions!$B$3 -> D | W172: =+Instructions!$C$22 -> 0 | X172: 1243.8 | AA172: 1243.8 | AB172: 0 | AC172: 1243.8 | AD172: 0 | AF172: 4 | AG172: 1243.8 | AJ172: 1243.8 | AK172: 0 | AL172: 0 | AO172: X
AO173: X
B174: Italy | E174: 39" x 118" x 3.5mm | G174: Motif / Kerlite | J174: Jungle A | L174: Naturale / Rectified | S174: =IF(Suggested="Yes",AA174,AG174) -> 1243.8 | T174: EA | U174: =+Instructions!$B$3 -> D | W174: =+Instructions!$C$22 -> 0 | X174: =ROUND($AA174*(1-W174)+0.004999,2) -> 1243.8 | AA174: 1243.8 | AB174: =+W174 -> 0 | AC174: 1243.8 | AD174: =(AG174-AC174)/AG174 -> 0 | AF174: 4 | AG174: =SUM(AJ174:AL174)+AE174 -> 1243.8 | AJ174: =ROUND(AC174/(1-VLOOKUP(AF174,Group,2,FALSE)),2) -> 1243.8 | AK174: =IF(VLOOKUP(AF174,Group,5,FALSE)="YES",VLOOKUP(ROUND(ROUND(AJ174,1)-AJ174,2),Round,2,FALSE)+VLOOKUP(AF174,Group,6,FALSE),0) -> 0 | AL174: =IF(VLOOKUP(AF174,Group,7,FALSE)="",0,ROUND(AJ174-0.04999,1)-AJ174+AM174) -> 0 | AM174: =IF(VLOOKUP(AF174,Group,7,FALSE)="","",VLOOKUP(AF174,Group,7,FALSE)) ->  | AO174: X
B175: Italy | E175: 39" x 118" x 3.5mm | G175: Motif / Kerlite | J175: Jungle B | L175: Naturale / Rectified | S175: 1243.8 | T175: EA | U175: =+Instructions!$B$3 -> D | W175: =+Instructions!$C$22 -> 0 | X175: 1243.8 | AA175: 1243.8 | AB175: 0 | AC175: 1243.8 | AD175: 0 | AF175: 4 | AG175: 1243.8 | AJ175: 1243.8 | AK175: 0 | AL175: 0 | AO175: X
B176: Italy | E176: 39" x 118" x 3.5mm | G176: Motif / Kerlite | J176: Jungle C | L176: Naturale / Rectified | S176: 1243.8 | T176: EA | U176: =+Instructions!$B$3 -> D | W176: =+Instructions!$C$22 -> 0 | X176: 1243.8 | AA176: 1243.8 | AB176: 0 | AC176: 1243.8 | AD176: 0 | AF176: 4 | AG176: 1243.8 | AJ176: 1243.8 | AK176: 0 | AL176: 0 | AO176: X
AO177: X
B178: Italy | E178: 39" x 118" x 3.5mm | G178: Motif / Kerlite | J178: Lotus A | L178: Naturale / Rectified | S178: =IF(Suggested="Yes",AA178,AG178) -> 1243.8 | T178: EA | U178: =+Instructions!$B$3 -> D | W178: =+Instructions!$C$22 -> 0 | X178: =ROUND($AA178*(1-W178)+0.004999,2) -> 1243.8 | AA178: 1243.8 | AB178: =+W178 -> 0 | AC178: 1243.8 | AD178: =(AG178-AC178)/AG178 -> 0 | AF178: 4 | AG178: =SUM(AJ178:AL178)+AE178 -> 1243.8 | AJ178: =ROUND(AC178/(1-VLOOKUP(AF178,Group,2,FALSE)),2) -> 1243.8 | AK178: =IF(VLOOKUP(AF178,Group,5,FALSE)="YES",VLOOKUP(ROUND(ROUND(AJ178,1)-AJ178,2),Round,2,FALSE)+VLOOKUP(AF178,Group,6,FALSE),0) -> 0 | AL178: =IF(VLOOKUP(AF178,Group,7,FALSE)="",0,ROUND(AJ178-0.04999,1)-AJ178+AM178) -> 0 | AM178: =IF(VLOOKUP(AF178,Group,7,FALSE)="","",VLOOKUP(AF178,Group,7,FALSE)) ->  | AO178: X
B179: Italy | E179: 39" x 118" x 3.5mm | G179: Motif / Kerlite | J179: Lotus B | L179: Naturale / Rectified | S179: 1243.8 | T179: EA | U179: =+Instructions!$B$3 -> D | W179: =+Instructions!$C$22 -> 0 | X179: 1243.8 | AA179: 1243.8 | AB179: 0 | AC179: 1243.8 | AD179: 0 | AF179: 4 | AG179: 1243.8 | AJ179: 1243.8 | AK179: 0 | AL179: 0 | AO179: X
B180: Italy | E180: 39" x 118" x 3.5mm | G180: Motif / Kerlite | J180: Lotus C | L180: Naturale / Rectified | S180: 1243.8 | T180: EA | U180: =+Instructions!$B$3 -> D | W180: =+Instructions!$C$22 -> 0 | X180: 1243.8 | AA180: 1243.8 | AB180: 0 | AC180: 1243.8 | AD180: 0 | AF180: 4 | AG180: 1243.8 | AJ180: 1243.8 | AK180: 0 | AL180: 0 | AO180: X
AO181: X
B182: Italy | E182: 19-1/2" x 39" x 3.5mm | G182: Motif / Kerlite | J182: Plume A | L182: Naturale / Rectified | P182: 10.76 SF/CTN | S182: =IF(Suggested="Yes",AA182,AG182) -> 58.85 | T182: SF | U182: =+Instructions!$B$3 -> D | W182: =+Instructions!$C$22 -> 0 | X182: =ROUND($AA182*(1-W182)+0.004999,2) -> 58.85 | AA182: 58.85 | AB182: =+W182 -> 0 | AC182: 58.85 | AD182: =(AG182-AC182)/AG182 -> 0 | AF182: 4 | AG182: =SUM(AJ182:AL182)+AE182 -> 58.85 | AJ182: =ROUND(AC182/(1-VLOOKUP(AF182,Group,2,FALSE)),2) -> 58.85 | AK182: =IF(VLOOKUP(AF182,Group,5,FALSE)="YES",VLOOKUP(ROUND(ROUND(AJ182,1)-AJ182,2),Round,2,FALSE)+VLOOKUP(AF182,Group,6,FALSE),0) -> 0 | AL182: =IF(VLOOKUP(AF182,Group,7,FALSE)="",0,ROUND(AJ182-0.04999,1)-AJ182+AM182) -> 0 | AM182: =IF(VLOOKUP(AF182,Group,7,FALSE)="","",VLOOKUP(AF182,Group,7,FALSE)) ->  | AO182: X
B183: Italy | E183: 19-1/2" x 39" x 3.5mm | G183: Motif / Kerlite | J183: Plume B | L183: Naturale / Rectified | P183: 10.76 SF/CTN | S183: 58.85 | T183: SF | U183: =+Instructions!$B$3 -> D | W183: =+Instructions!$C$22 -> 0 | X183: 58.85 | AA183: 58.85 | AB183: 0 | AC183: 58.85 | AD183: 0 | AF183: 4 | AG183: 58.85 | AJ183: 58.85 | AK183: 0 | AL183: 0 | AO183: X
B184: Italy | E184: 19-1/2" x 39" x 3.5mm | G184: Motif / Kerlite | J184: Plume C | L184: Naturale / Rectified | P184: 10.76 SF/CTN | S184: 58.85 | T184: SF | U184: =+Instructions!$B$3 -> D | W184: =+Instructions!$C$22 -> 0 | X184: 58.85 | AA184: 58.85 | AB184: 0 | AC184: 58.85 | AD184: 0 | AF184: 4 | AG184: 58.85 | AJ184: 58.85 | AK184: 0 | AL184: 0 | AO184: X
B185: Italy | E185: 19-1/2" x 39" x 3.5mm | G185: Motif / Kerlite | J185: Plume D | L185: Naturale / Rectified | P185: 10.76 SF/CTN | S185: 58.85 | T185: SF | U185: =+Instructions!$B$3 -> D | W185: =+Instructions!$C$22 -> 0 | X185: 58.85 | AA185: 58.85 | AB185: 0 | AC185: 58.85 | AD185: 0 | AF185: 4 | AG185: 58.85 | AJ185: 58.85 | AK185: 0 | AL185: 0 | AO185: X
B186: Italy | E186: 19-1/2" x 39" x 3.5mm | G186: Motif / Kerlite | J186: Plume E | L186: Naturale / Rectified | P186: 10.76 SF/CTN | S186: 58.85 | T186: SF | U186: =+Instructions!$B$3 -> D | W186: =+Instructions!$C$22 -> 0 | X186: 58.85 | AA186: 58.85 | AB186: 0 | AC186: 58.85 | AD186: 0 | AF186: 4 | AG186: 58.85 | AJ186: 58.85 | AK186: 0 | AL186: 0 | AO186: X
AO187: X
B188: Italy | E188: 19-1/2" x 39" x 3.5mm | G188: Motif / Kerlite | J188: Printemps A & B | L188: Naturale / Rectified | P188: 10.76 SF/CTN | R188: c | S188: =IF(Suggested="Yes",AA188,AG188) -> 58.85 | T188: SF | U188: =+Instructions!$B$3 -> D | W188: =+Instructions!$C$22 -> 0 | X188: =ROUND($AA188*(1-W188)+0.004999,2) -> 58.85 | AA188: 58.85 | AB188: =+W188 -> 0 | AC188: =+X188 -> 58.85 | AD188: =(AG188-AC188)/AG188 -> 0 | AF188: 4 | AG188: =SUM(AJ188:AL188)+AE188 -> 58.85 | AJ188: =ROUND(AC188/(1-VLOOKUP(AF188,Group,2,FALSE)),2) -> 58.85 | AK188: =IF(VLOOKUP(AF188,Group,5,FALSE)="YES",VLOOKUP(ROUND(ROUND(AJ188,1)-AJ188,2),Round,2,FALSE)+VLOOKUP(AF188,Group,6,FALSE),0) -> 0 | AL188: =IF(VLOOKUP(AF188,Group,7,FALSE)="",0,ROUND(AJ188-0.04999,1)-AJ188+AM188) -> 0 | AM188: =IF(VLOOKUP(AF188,Group,7,FALSE)="","",VLOOKUP(AF188,Group,7,FALSE)) ->  | AO188: X
B189: Italy | E189: 39" x 118" x 3.5mm | G189: Motif / Kerlite | J189: Printemps A | L189: Naturale / Rectified | S189: 1243.8 | T189: EA | U189: =+Instructions!$B$3 -> D | W189: =+Instructions!$C$22 -> 0 | X189: 1243.8 | AA189: 1243.8 | AB189: 0 | AC189: 1243.8 | AD189: 0 | AF189: 4 | AG189: 1243.8 | AJ189: 1243.8 | AK189: 0 | AL189: 0 | AO189: X
AO190: X
B191: Italy | E191: 39" x 118" x 3.5mm | G191: Motif / Kerlite | J191: Ritmi 01 | L191: Naturale / Rectified | R191: a | S191: =IF(Suggested="Yes",AA191,AG191) -> 1243.8 | T191: EA | U191: =+Instructions!$B$3 -> D | W191: =+Instructions!$C$22 -> 0 | X191: =ROUND($AA191*(1-W191)+0.004999,2) -> 1243.8 | AA191: 1243.8 | AB191: =+W191 -> 0 | AC191: 1243.8 | AD191: =(AG191-AC191)/AG191 -> 0 | AF191: 4 | AG191: =SUM(AJ191:AL191)+AE191 -> 1243.8 | AJ191: =ROUND(AC191/(1-VLOOKUP(AF191,Group,2,FALSE)),2) -> 1243.8 | AK191: =IF(VLOOKUP(AF191,Group,5,FALSE)="YES",VLOOKUP(ROUND(ROUND(AJ191,1)-AJ191,2),Round,2,FALSE)+VLOOKUP(AF191,Group,6,FALSE),0) -> 0 | AL191: =IF(VLOOKUP(AF191,Group,7,FALSE)="",0,ROUND(AJ191-0.04999,1)-AJ191+AM191) -> 0 | AM191: =IF(VLOOKUP(AF191,Group,7,FALSE)="","",VLOOKUP(AF191,Group,7,FALSE)) ->  | AO191: X
B192: Italy | E192: 39" x 118" x 3.5mm | G192: Motif / Kerlite | J192: Ritmi 02 | L192: Naturale / Rectified | R192: a | S192: 1243.8 | T192: EA | U192: =+Instructions!$B$3 -> D | W192: =+Instructions!$C$22 -> 0 | X192: 1243.8 | AA192: 1243.8 | AB192: 0 | AC192: 1243.8 | AD192: 0 | AF192: 4 | AG192: 1243.8 | AJ192: 1243.8 | AK192: 0 | AL192: 0 | AO192: X
B193: Italy | E193: 39" x 118" x 3.5mm | G193: Motif / Kerlite | J193: Ritmi 03 | L193: Naturale / Rectified | R193: a | S193: 1243.8 | T193: EA | U193: =+Instructions!$B$3 -> D | W193: =+Instructions!$C$22 -> 0 | X193: 1243.8 | AA193: 1243.8 | AB193: 0 | AC193: 1243.8 | AD193: 0 | AF193: 4 | AG193: 1243.8 | AJ193: 1243.8 | AK193: 0 | AL193: 0 | AO193: X
AO194: X
B195: Italy | E195: 39" x 118" x 3.5mm | G195: Motif / Kerlite | J195: Sketch A | L195: Naturale / Rectified | R195: b | S195: =IF(Suggested="Yes",AA195,AG195) -> 1243.8 | T195: EA | U195: =+Instructions!$B$3 -> D | W195: =+Instructions!$C$22 -> 0 | X195: =ROUND($AA195*(1-W195)+0.004999,2) -> 1243.8 | AA195: 1243.8 | AB195: =+W195 -> 0 | AC195: =+X195 -> 1243.8 | AD195: =(AG195-AC195)/AG195 -> 0 | AF195: 4 | AG195: =SUM(AJ195:AL195)+AE195 -> 1243.8 | AJ195: =ROUND(AC195/(1-VLOOKUP(AF195,Group,2,FALSE)),2) -> 1243.8 | AK195: =IF(VLOOKUP(AF195,Group,5,FALSE)="YES",VLOOKUP(ROUND(ROUND(AJ195,1)-AJ195,2),Round,2,FALSE)+VLOOKUP(AF195,Group,6,FALSE),0) -> 0 | AL195: =IF(VLOOKUP(AF195,Group,7,FALSE)="",0,ROUND(AJ195-0.04999,1)-AJ195+AM195) -> 0 | AM195: =IF(VLOOKUP(AF195,Group,7,FALSE)="","",VLOOKUP(AF195,Group,7,FALSE)) ->  | AO195: X
B196: Italy | E196: 39" x 118" x 3.5mm | G196: Motif / Kerlite | J196: Sketch A-SX | L196: Naturale / Rectified | R196: b | S196: 1243.8 | T196: EA | U196: =+Instructions!$B$3 -> D | W196: =+Instructions!$C$22 -> 0 | X196: 1243.8 | AA196: 1243.8 | AB196: 0 | AC196: 1243.8 | AD196: 0 | AF196: 4 | AG196: 1243.8 | AJ196: 1243.8 | AK196: 0 | AL196: 0 | AO196: X
B197: Italy | E197: 39" x 118" x 3.5mm | G197: Motif / Kerlite | J197: Sketch B | L197: Naturale / Rectified | R197: b | S197: =IF(Suggested="Yes",AA197,AG197) -> 1243.8 | T197: EA | U197: =+Instructions!$B$3 -> D | W197: =+Instructions!$C$22 -> 0 | X197: =ROUND($AA197*(1-W197)+0.004999,2) -> 1243.8 | AA197: 1243.8 | AB197: =+W197 -> 0 | AC197: 1243.8 | AD197: =(AG197-AC197)/AG197 -> 0 | AF197: 4 | AG197: =SUM(AJ197:AL197)+AE197 -> 1243.8 | AJ197: =ROUND(AC197/(1-VLOOKUP(AF197,Group,2,FALSE)),2) -> 1243.8 | AK197: =IF(VLOOKUP(AF197,Group,5,FALSE)="YES",VLOOKUP(ROUND(ROUND(AJ197,1)-AJ197,2),Round,2,FALSE)+VLOOKUP(AF197,Group,6,FALSE),0) -> 0 | AL197: =IF(VLOOKUP(AF197,Group,7,FALSE)="",0,ROUND(AJ197-0.04999,1)-AJ197+AM197) -> 0 | AM197: =IF(VLOOKUP(AF197,Group,7,FALSE)="","",VLOOKUP(AF197,Group,7,FALSE)) ->  | AO197: X
B198: Italy | E198: 39" x 118" x 3.5mm | G198: Motif / Kerlite | J198: Sketch B-DX | L198: Naturale / Rectified | R198: b | S198: 1243.8 | T198: EA | U198: =+Instructions!$B$3 -> D | W198: =+Instructions!$C$22 -> 0 | X198: 1243.8 | AA198: 1243.8 | AB198: 0 | AC198: 1243.8 | AD198: 0 | AF198: 4 | AG198: 1243.8 | AJ198: 1243.8 | AK198: 0 | AL198: 0 | AO198: X
AO199: X
B200: Italy | E200: 39" x 118" x 3.5mm | G200: Motif / Kerlite | J200: Venice A | L200: Naturale / Rectified | S200: =IF(Suggested="Yes",AA200,AG200) -> 1243.8 | T200: EA | U200: =+Instructions!$B$3 -> D | W200: =+Instructions!$C$22 -> 0 | X200: =ROUND($AA200*(1-W200)+0.004999,2) -> 1243.8 | AA200: 1243.8 | AB200: =+W200 -> 0 | AC200: =+X200 -> 1243.8 | AD200: =(AG200-AC200)/AG200 -> 0 | AF200: 4 | AG200: =SUM(AJ200:AL200)+AE200 -> 1243.8 | AJ200: =ROUND(AC200/(1-VLOOKUP(AF200,Group,2,FALSE)),2) -> 1243.8 | AK200: =IF(VLOOKUP(AF200,Group,5,FALSE)="YES",VLOOKUP(ROUND(ROUND(AJ200,1)-AJ200,2),Round,2,FALSE)+VLOOKUP(AF200,Group,6,FALSE),0) -> 0 | AL200: =IF(VLOOKUP(AF200,Group,7,FALSE)="",0,ROUND(AJ200-0.04999,1)-AJ200+AM200) -> 0 | AM200: =IF(VLOOKUP(AF200,Group,7,FALSE)="","",VLOOKUP(AF200,Group,7,FALSE)) ->  | AO200: X
... 35 more rows

Sheet Websites
A1: Easy Access Website links
A3: ConestogaTile's Website | B3: http://www.conestogatile.com/
A5: Manufacturer's Home Page | B5: https://www.cottodeste.us/
A8: Product | B8: Direct Website Link
A9: BLACK-WHITE | B9: https://www.cottodeste.us/collection/black-white
A10: CEMENT PROJECT | B10: https://www.cottodeste.us/collection/cement-project
A11: GRUNGE | B11: https://www.cottodeste.us/collection/grunge
A12: KERLITE EASY | B12: https://www.cottodeste.us/solutions/kerlite-easy
A13: LIMESTONE | B13: https://www.cottodeste.us/collection/limestone
A14: LITHOS | B14: https://www.cottodeste.us/collection/lithos
A15: METAL | B15: https://www.cottodeste.us/collection/metal
A16: PIETRA D'ISEO | B16: https://www.cottodeste.us/collection/pietra-d-iseo
A17: VANITY | B17: https://www.cottodeste.us/collection/vanity
A18: WONDERWALL | B18: https://www.cottodeste.us/collection/wonderwall

Sheet Changes
A1: Date
A2: Announced | B2: Series | C2: Description
A4: New Products
A6: 2024-12-01 | B6: Wonderwall | C6: The following formats have been added:
C7: 39" x 118" x 3.5mm Blanc / Rectified Field Motif.
C8: 19-1/2" x 39" x 3.5mm Botany A & B Motif.
C9: 39" x 118" x 3.5mm Foliage A Motif.
C10: 39" x 118" x 3.5mm Printemps A Motif.
C11: 19-1/2" x 39" x 3.5mm Golden Leaf A&B Motif.
C12: 39" x 118" x 3.5mm Golden Leaf A Motif.
C13: 19-1/2" x 39" x 3.5mm Golden Slab Motif. | K13: =D13&" "&I13 -> 
C14: 39" x 118" x 3.5mm Golden Slab Motif.
C15: 19-1/2" x 39" x 3.5mm Silver Leaf A&B Motif.
C16: 39" x 118" x 3.5mm Silver Leaf A Motif.
C17: 19-1/2" x 39" x 3.5mm Silver Slab Motif.
C18: 39" x 118" x 3.5mm Silver Slab Motif.
A19: 2025-01-14 | B19: Kerlite Easy | C19: Kerlite Easy Mat Roll and Kerlite Easy Filler.
A56: Discontinued Products
A122: Changes
